bitfinex/quotes_SOLUSD_20260217
["timestamp","ask_amount","ask_price","bid_price","bid_amount"]
[1771366977549,0.3,85.369,85.343,0.47619932]
[1771366979144,0.3,85.367,85.338,0.47619932]
[1771366979350,0.3,85.359,85.33,0.47619932]
[1771366979532,0.3,85.359,85.331,0.47619932]
[1771366983846,2.3750635,85.38,85.32,0.2]
[1771366983847,0.3,85.349,85.321,0.47619932]
[1771366984033,0.3,85.339,85.321,12.19664329]
[1771366985251,0.3,85.339,85.321,0.47619932]
[1771366985450,2.3750635,85.33,85.3,0.2]
[1771366985625,0.47856378,85.329,85.301,11.72319199]
[1771366986357,0.47856378,85.324,85.301,11.72319199]
[1771366987541,0.47856378,85.324,85.302,0.47619932]
[1771366988551,0.47856378,85.324,85.304,0.47619932]
[1771366990436,0.47856378,85.324,85.306,0.47619932]
[1771366995349,0.47856378,85.324,85.307,11.72236744]
[1771366996058,0.47856378,85.324,85.307,12.21518561]
[1771366997563,0.47856378,85.324,85.308,0.49281817]
[1771367000145,2.3750635,85.35,85.311,0.49281817]
[1771367000352,2.3750635,85.36,85.321,0.49281817]
[1771367000749,2.3750635,85.37,85.331,0.49281817]
[1771367002175,0.29763554,85.367,85.333,0.49281817]
[1771367002467,2.3750635,85.36,85.333,0.49281817]
[1771367003857,0.29763554,85.359,85.333,0.49281817]
[1771367006567,2.67269904,85.37,85.341,0.49281817]
[1771367006874,2.3750635,85.39,85.361,0.49281817]
[1771367007071,0.29763554,85.399,85.361,0.49281817]
[1771367007566,0.29763554,85.389,85.361,0.49281817]
[1771367007774,0.29763554,85.379,85.361,0.49281817]
[1771367008145,0.29763554,85.379,85.34,2.3750635]
[1771367008365,0.29763554,85.379,85.341,18.94]
[1771367008665,0.49076031,85.378,85.341,11.71769723]
[1771367009170,0.49076031,85.369,85.341,11.71769723]
[1771367010073,0.49076031,85.369,85.342,0.49281817]
[1771367011669,0.49076031,85.369,85.343,11.71742263]
[1771367011857,0.49076031,85.369,85.344,0.49281817]
[1771367012948,2.3750635,85.38,85.35,2.3750635]
[1771367012949,0.49076031,85.376,85.35,2.3750635]
[1771367013173,0.49076031,85.376,85.351,0.49281817]
[1771367014771,11.71303074,85.375,85.351,0.49281817]
[1771367015555,0.49076031,85.374,85.351,0.49281817]
[1771367017578,0.49076031,85.374,85.353,0.49281817]
[1771367017876,0.49076031,85.369,85.346,0.49281817]
[1771367018579,0.49076031,85.369,85.341,0.49281817]
[1771367021476,0.49076031,85.369,85.343,0.49281817]
[1771367021878,0.49076031,85.379,85.343,0.49281817]
[1771367024058,0.49076031,85.377,85.345,0.49281817]
[1771367026587,2.37572344,85.37,85.346,11.71701075]
[1771367026779,2.37572344,85.37,85.347,0.4886168]
[1771367026780,0.49629049,85.369,85.347,0.4886168]
[1771367032692,0.49629049,85.367,85.347,0.4886168]
[1771367033382,0.49629049,85.367,85.346,11.71701075]
[1771367035983,0.49629049,85.367,85.346,0.47480371]
[1771367036294,2.37572344,85.38,85.346,0.47480371]
[1771367036295,0.49144253,85.379,85.346,0.47480371]
[1771367037007,14.08819354,85.38,85.346,0.47480371]
[1771367037008,2.37572344,85.36,85.346,0.47480371]
[1771367037293,0.49144253,85.358,85.286,18.96]
[1771367037469,1e-08,85.32,85.28,0.2]
[1771367037673,2.37572344,85.29,85.28,0.2]
[1771367038472,2.37572344,85.29,85.275,11.72672877]
[1771367038473,0.49144253,85.312,85.275,41.04364463]
[1771367038675,0.49144253,85.309,85.275,41.04364463]
[1771367039079,2.37572344,85.3,85.275,41.04364463]
[1771367039481,2.37572344,85.3,85.276,0.47480371]
[1771367039792,2.37572344,85.3,85.277,11.72649131]
[1771367040095,2.37572344,85.3,85.278,0.47480371]
[1771367040789,0.5,85.329,85.28,6.99301596]
[1771367041089,2.37572344,85.33,85.26,2.57572344]
[1771367041090,0.5,85.289,85.271,19.02]
[1771367041277,0.5,85.289,85.262,19.04]
[1771367041892,0.5,85.289,85.263,11.72841678]
[1771367042275,0.5,85.289,85.263,30.76841678]
[1771367042986,0.5,85.289,85.263,60.08945873]
[1771367052301,0.5,85.289,85.263,30.76841678]
[1771367053699,0.5,85.299,85.263,60.08945873]
[1771367053997,2.37572344,85.29,85.263,60.08945873]
[1771367054205,0.5,85.289,85.263,60.08945873]
[1771367058001,0.5,85.289,85.263,41.04945873]
[1771367058301,0.5,85.289,85.265,11.72814167]
[1771367058706,0.5,85.289,85.265,41.04849585]
[1771367063704,0.5,85.309,85.27,2.37572344]
[1771367064213,0.5,85.314,85.28,2.37572344]
[1771367064393,0.5,85.314,85.29,2.37572344]
[1771367064796,0.5,85.314,85.281,19.12]
[1771367065003,0.5,85.322,85.29,2.37572344]
[1771367066520,0.5,85.322,85.291,41.03598269]
[1771367068498,0.5,85.339,85.301,41.03117196]
[1771367070408,0.5,85.339,85.31,2.37572344]
[1771367071095,0.5,85.349,85.32,2.37572344]
[1771367072716,103.5,85.396,85.32,2.37572344]
[1771367072717,0.5,85.358,85.34,2.37572344]
[1771367072918,0.5,85.365,85.35,2.37572344]
[1771367073121,2.47572344,85.39,85.35,2.37572344]
[1771367073122,0.5,85.388,85.35,2.37572344]
[1771367074518,11.71138463,85.387,85.351,11.71632435]
[1771367074813,0.5,85.386,85.351,11.71632435]
[1771367078123,0.5,85.384,85.351,11.71632435]
[1771367079401,0.5,85.379,85.34,2.37572344]
[1771367079606,0.5,85.369,85.331,11.71907044]
[1771367079816,0.5,85.369,85.34,2.37572344]
[1771367080018,0.5,85.369,85.34,2.37569664]
[1771367080601,0.5,85.367,85.331,11.71907044]
[1771367088609,0.5,85.367,85.333,11.71879577]
[1771367089607,0.5,85.367,85.333,30.81879577]
[1771367090526,0.5,85.367,85.333,11.71879577]
[1771367090713,0.5,85.367,85.333,30.81879577]
[1771367091423,0.5,85.365,85.333,30.81879577]
[1771367098517,0.5,85.365,85.333,41.01578521]
[1771367098711,58.55071581,85.397,85.333,41.01578521]
[1771367098712,0.5,85.388,85.35,2.37569664]
[1771367099234,0.5,85.379,85.333,41.01578521]
[1771367099412,0.5,85.379,85.334,19.12]
[1771367099738,0.5,85.379,85.335,19.12]
[1771367100715,0.5,85.377,85.34,2.37569664]
[1771367102118,0.5,85.369,85.336,11.7183838]
[1771367103534,12.21398069,85.369,85.336,11.7183838]
[1771367103736,0.5,85.368,85.336,11.7183838]
[1771367104911,11.71412841,85.367,85.336,11.7183838]
[1771367105116,11.71412841,85.367,85.302,11.72305455]
[1771367105117,0.5,85.349,85.302,11.72305455]
[1771367105323,0.5,85.329,85.308,4.61729252]
[1771367110229,0.5,85.329,85.309,41.02732418]
[1771367111531,0.5,85.329,85.309,11.72209262]
[1771367111833,0.5,85.319,85.309,11.72209262]
[1771367114739,0.4569723,85.317,85.282,31.33748589]
[1771367114938,2.37569664,85.3,85.277,0.45168209]
[1771367116628,2.37569664,85.3,85.279,0.45168209]
[1771367119015,0.4569723,85.306,85.281,0.45168209]
[1771367119525,2.37569664,85.31,85.281,0.45168209]
[1771367120333,14.55469922,85.31,85.283,0.45168209]
[1771367120535,0.4569723,85.309,85.283,0.45168209]
[1771367120718,2.83266894,85.3,85.283,0.45168209]
[1771367120920,0.4569723,85.305,85.283,0.45168209]
[1771367122734,0.4569723,85.305,85.284,11.72552882]
[1771367122940,0.4569723,85.305,85.285,0.45168209]
[1771367126741,2.37569664,85.3,85.285,0.45168209]
[1771367126928,2.37569664,85.3,85.286,11.72525385]
[1771367127247,2.37569664,85.3,85.286,12.17693594]
[1771367130244,2.37569664,85.3,85.287,0.45168209]
[1771367130450,2.37569664,85.32,85.277,11.72649131]
[1771367130451,2.37569664,85.32,85.291,0.45168209]
[1771367130945,0.4569723,85.319,85.291,0.45168209]
[1771367132940,0.4569723,85.319,85.293,0.45168209]
[1771367134331,0.4569723,85.319,85.295,0.45168209]
[1771367139241,0.4569723,85.319,85.297,0.45168209]
[1771367140540,0.4569723,85.319,85.299,0.45168209]
[1771367142344,0.4569723,85.319,85.3,11.72332942]
[1771367142543,0.4569723,85.319,85.301,0.45168209]
[1771367146460,0.4569723,85.319,85.302,11.72305455]
[1771367146653,0.4569723,85.319,85.303,0.48081823]
[1771367149249,0.4569723,85.319,85.304,11.7227797]
[1771367155269,0.4569723,85.319,85.299,0.45964032]
[1771367159379,0.4569723,85.319,85.301,0.45964032]
[1771367164572,0.48854425,85.309,85.282,0.45964032]
[1771367164881,0.48854425,85.299,85.284,0.45964032]
[1771367166055,0.48854425,85.299,85.285,11.72539133]
[1771367166969,0.48854425,85.299,85.285,12.18503165]
[1771367168081,0.48854425,85.299,85.281,19.58]
[1771367168279,0.48854425,85.289,85.268,19.58]
[1771367168578,0.48854425,85.279,85.257,11.72917537]
[1771367168776,0.48854425,85.269,85.252,11.72989528]
[1771367169579,0.30012291,85.285,85.247,0.45964032]
[1771367169759,0.30012291,85.279,85.247,0.45964032]
[1771367172782,0.30012291,85.279,85.249,0.45964032]
[1771367172982,2.37845268,85.34,85.271,0.50006145]
[1771367173186,2.37845268,85.34,85.301,0.50006145]
[1771367173386,2.37845268,85.34,85.303,0.50006145]
[1771367174267,2.37845268,85.35,85.311,0.50006145]
[1771367174790,2.37845268,85.34,85.311,0.50006145]
[1771367176283,2.37845268,85.35,85.311,0.50006145]
[1771367176664,11.7165989,85.349,85.313,0.500318]
[1771367183485,2.37845268,85.34,85.309,11.72207176]
[1771367183692,2.37845268,85.33,85.294,0.500318]
[1771367183904,16.84,85.329,85.295,0.500318]
[1771367186798,16.84,85.329,85.294,41.03453935]
[1771367186799,16.84,85.329,85.297,0.500318]
[1771367187204,2.37845268,85.33,85.297,0.500318]
[1771367187499,16.82,85.329,85.297,0.500318]
[1771367187898,16.82,85.329,85.298,11.7236043]
[1771367188102,16.82,85.329,85.299,0.500318]
[1771367188485,16.82,85.329,85.3,2.37845268]
[1771367189390,16.82,85.329,85.299,0.500318]
[1771367191299,28.51948246,85.328,85.3,11.72332942]
[1771367191487,16.8,85.328,85.3,11.72332942]
[1771367192909,16.8,85.328,85.3,12.22364742]
[1771367194809,28.51948246,85.328,85.3,12.22364742]
[1771367195405,28.51948246,85.328,85.3,11.72332942]
[1771367197004,28.51948246,85.328,85.299,0.500318]
[1771367197214,16.8,85.328,85.299,0.500318]
[1771367202310,16.8,85.328,85.3,11.72332942]
[1771367202516,16.8,85.328,85.301,0.500318]
[1771367202705,2.37808356,85.32,85.284,0.500318]
[1771367202894,16.84,85.319,85.284,0.500318]
[1771367204401,16.84,85.319,85.286,0.500318]
[1771367204601,2.37808356,85.32,85.286,0.500318]
[1771367204801,28.56085609,85.318,85.286,0.500318]
[1771367206609,16.84,85.318,85.287,11.72511637]
[1771367206805,16.84,85.318,85.288,0.50006145]
[1771367207197,2.37808356,85.31,85.271,0.50006145]
[1771367207397,41.02347714,85.317,85.271,0.50006145]
[1771367207398,2.37808356,85.3,85.271,0.50006145]
[1771367207614,2.37808356,85.3,85.268,0.50006145]
[1771367207916,16.84,85.299,85.268,0.50006145]
[1771367209215,16.84,85.299,85.269,11.7275915]
[1771367209712,2.37808356,85.29,85.269,11.7275915]
[1771367209916,2.37808356,85.31,85.271,0.50006145]
[1771367210117,16.84,85.309,85.271,0.50006145]
[1771367210306,2.37808356,85.3,85.271,0.50006145]
[1771367212218,2.37808356,85.3,85.272,11.7271789]
[1771367212406,2.37808356,85.29,85.273,0.50006145]
[1771367212821,16.84,85.299,85.273,0.50006145]
[1771367213519,16.84,85.299,85.274,11.72690386]
[1771367214918,28.5635178,85.299,85.274,11.72690386]
[1771367215126,2.37808356,85.28,85.262,12.22861578]
[1771367215310,2.37808356,85.28,85.262,0.50006145]
[1771367215511,2.37808356,85.28,85.257,0.50006145]
[1771367216228,2.37808356,85.32,85.257,0.50006145]
[1771367216229,16.86,85.279,85.257,0.50006145]
[1771367217512,16.86,85.279,85.258,11.7291046]
[1771367217712,16.86,85.279,85.259,0.50006145]
[1771367220628,16.86,85.279,85.261,0.50006145]
[1771367220930,16.86,85.279,85.256,29.32344937]
[1771367220931,2.37808356,85.27,85.256,12.22935234]
[1771367221114,2.37808356,85.27,85.256,11.72929089]
[1771367221313,2.37808356,85.27,85.252,11.72981917]
[1771367222340,2.37808356,85.27,85.253,0.50006145]
[1771367224210,2.37808356,85.27,85.254,11.72965491]
[1771367224415,2.37808356,85.27,85.254,12.22971636]
[1771367224830,2.37808356,85.27,85.255,0.50006145]
[1771367227226,16.86,85.272,85.256,11.72937975]
[1771367228812,16.86,85.272,85.256,0.50006145]
[1771367231337,16.88,85.271,85.257,11.72924217]
[1771367231730,16.88,85.271,85.258,0.50006145]
[1771367234948,16.88,85.271,85.24,2.57808356]
[1771367234949,2.37808356,85.27,85.24,0.2]
[1771367235125,2.37808356,85.25,85.234,0.50006145]
[1771367236425,2.37808356,85.25,85.235,11.7322696]
[1771367238237,2.37808356,85.26,85.236,0.50006145]
[1771367241438,2.37808356,85.26,85.237,12.23205577]
[1771367242722,2.37808356,85.25,85.237,12.23205577]
[1771367243825,2.37808356,85.26,85.237,12.23205577]
[1771367245843,2.37808356,85.26,85.238,0.50006145]
[1771367247042,2.37808356,85.25,85.238,0.50006145]
[1771367247241,2.37808356,85.26,85.238,0.50006145]
[1771367251341,2.37808356,85.25,85.238,0.50006145]
[1771367255252,2.37808356,85.28,85.241,0.50006145]
[1771367255454,16.88,85.279,85.241,0.50006145]
[1771367255660,2.37808356,85.27,85.241,0.50006145]
[1771367258359,2.37808356,85.27,85.243,0.50006145]
[1771367260861,2.37808356,85.27,85.245,0.50006145]
[1771367264062,2.38131945,85.27,85.247,0.50006145]
[1771367272462,2.38131945,85.27,85.249,0.50006145]
[1771367276077,2.38131945,85.27,85.251,0.50006145]
[1771367277559,2.38131945,85.27,85.253,0.50006145]
[1771367277771,0.47794931,85.259,85.231,11.73282021]
[1771367277973,0.47794931,85.249,85.231,11.73282021]
[1771367279774,0.47794931,85.249,85.233,11.7325449]
[1771367279977,0.47794931,85.249,85.234,0.48447427]
[1771367280856,0.47794931,85.249,85.233,11.7325449]
[1771367280857,0.47794931,85.239,85.22,11.9342905]
[1771367281373,0.30383447,85.237,85.22,11.9342905]
[1771367283180,16.92,85.238,85.221,0.48447427]
[1771367283361,13.5958427,85.238,85.221,0.48447427]
[1771367285868,16.92,85.245,85.223,0.48447427]
[1771367286075,0.3053882,85.244,85.223,0.48447427]
[1771367287555,29.31952356,85.268,85.225,0.48447427]
[1771367287556,14.11022437,85.26,85.225,0.48447427]
[1771367287759,16.92,85.259,85.225,0.48447427]
[1771367287974,0.30598046,85.258,85.225,0.48447427]
[1771367288185,0.30598046,85.249,85.225,0.48447427]
[1771367288377,2.68729991,85.25,85.225,0.48447427]
[1771367288680,0.30626668,85.249,85.225,0.48447427]
[1771367290660,0.30626668,85.249,85.227,0.48447427]
[1771367294691,0.30626668,85.249,85.229,0.46584035]
[1771367299889,0.30626668,85.249,85.231,0.46584035]
[1771367311577,0.30626668,85.249,85.233,0.46584035]
[1771367314694,16.96,85.26,85.231,0.50623191]
[1771367316408,16.96,85.264,85.231,0.50623191]
[1771367321391,16.96,85.264,85.233,0.50623191]
[1771367324190,16.94,85.27,85.241,0.50623191]
[1771367324394,2.38131945,85.28,85.241,0.50623191]
[1771367324593,2.38131945,85.27,85.241,0.50623191]
[1771367325907,2.38134149,85.27,85.241,0.50623191]
[1771367327315,16.94,85.276,85.243,0.50623191]
[1771367327620,2.38134149,85.27,85.238,0.50623191]
[1771367330417,11.7275915,85.269,85.239,11.73171904]
[1771367330617,11.7275915,85.269,85.24,0.50623191]
[1771367334723,2.38134149,85.27,85.241,11.73144378]
[1771367334904,2.38134149,85.27,85.242,0.50623191]
[1771367335311,19.32134149,85.27,85.242,0.50623191]
[1771367335905,14.10887941,85.27,85.243,11.73116854]
[1771367336120,31.04887941,85.27,85.244,0.50623191]
[1771367336509,14.10887941,85.27,85.244,0.50623191]
[1771367336709,31.04887941,85.27,85.244,0.50623191]
[1771367338421,2.38134149,85.28,85.246,0.50623191]
[1771367338608,16.94,85.279,85.251,0.50623191]
[1771367340210,4.61729252,85.31,85.26,2.38134149]
[1771367340414,11.72484142,85.289,85.263,0.50623191]
[1771367342114,11.72484142,85.289,85.265,0.50623191]
[1771367343004,2.38134149,85.3,85.265,0.50623191]
[1771367344121,11.72346686,85.299,85.267,0.50623191]
[1771367345310,11.72346686,85.299,85.271,0.50623191]
[1771367348410,11.72346686,85.299,85.272,11.7271789]
[1771367348611,11.72346686,85.299,85.273,0.50623191]
[1771367354220,41.01530455,85.334,85.276,0.50623191]
[1771367354533,2.38134149,85.3,85.276,0.50623191]
[1771367354739,17.02,85.299,85.276,0.50623191]
[1771367355324,2.38134149,85.29,85.252,0.50623191]
[1771367355530,17.02,85.299,85.252,0.50623191]
[1771367355531,2.38134149,85.28,85.252,0.50623191]
[1771367356427,2.38134149,85.29,85.254,0.50623191]
[1771367356735,2.38134149,85.28,85.254,0.50623191]
[1771367356918,2.38134149,85.29,85.254,0.50623191]
[1771367361140,11.72484142,85.289,85.255,11.72951733]
[1771367361340,11.72484142,85.289,85.256,0.50623191]
[1771367362621,17.02,85.288,85.256,0.50623191]
[1771367370042,11.72511637,85.287,85.256,0.50623191]
[1771367376348,17.06,85.286,85.256,0.50623191]
[1771367379259,17.08,85.285,85.261,0.50623191]
[1771367381155,17.08,85.285,85.262,11.72855433]
[1771367381350,17.08,85.285,85.263,0.50623191]
[1771367384152,29.30472435,85.311,85.265,0.50623191]
[1771367384356,2.38134149,85.3,85.265,0.50623191]
[1771367387454,17.08,85.31,85.265,0.50623191]
[1771367387654,17.08,85.311,85.281,0.50623191]
[1771367388049,2.37909714,85.31,85.281,0.50623191]
[1771367388259,17.08,85.311,85.281,0.50623191]
[1771367388853,2.37909714,85.31,85.281,0.50623191]
[1771367389362,17.08,85.309,85.281,0.50623191]
[1771367389756,11.72223003,85.308,85.282,11.7258038]
[1771367390063,11.72223003,85.308,85.283,0.50623191]
[1771367391167,31.67738887,85.33,85.291,0.50623191]
[1771367391370,58.09770792,85.329,85.291,0.50623191]
[1771367392067,11.71934512,85.329,85.31,2.37909714]
[1771367392368,11.71934512,85.329,85.292,41.03550157]
[1771367392369,17.08,85.328,85.307,0.50623191]
[1771367393167,11.71934512,85.329,85.307,0.50623191]
[1771367393463,17.08,85.328,85.307,0.50623191]
[1771367400685,2.47909714,85.34,85.292,29.31107255]
[1771367400686,0.1,85.34,85.321,0.50623191]
[1771367400866,0.1,85.35,85.332,0.50623191]
[1771367401062,0.1,85.35,85.341,0.50623191]
[1771367401479,11.71418265,85.367,85.341,0.50623191]
[1771367401667,28.81361677,85.371,85.341,0.50623191]
[1771367401872,5.36086188,85.422,85.311,19.26]
[1771367401873,0.1,85.41,85.351,0.50623191]
[1771367402066,0.1,85.41,85.341,0.50623191]
[1771367402067,2.37909714,85.38,85.341,0.50623191]
[1771367402268,13.28,85.379,85.341,0.50623191]
[1771367402573,11.71261917,85.378,85.343,0.50623191]
[1771367402774,28.81261917,85.378,85.343,0.50623191]
[1771367403159,11.71261917,85.378,85.343,0.50623191]
[1771367403364,17.08,85.377,85.343,0.50623191]
[1771367404387,4.61729252,85.407,85.34,2.37909714]
[1771367404388,17.08,85.397,85.371,0.50623191]
[1771367404563,17.1,85.402,85.371,0.50623191]
[1771367405079,11.70986054,85.399,85.371,0.50623191]
[1771367411701,11.70986054,85.399,85.35,2.37909714]
[1771367411702,11.70986054,85.399,85.361,0.50623191]
[1771367411987,11.70986054,85.399,85.351,0.50623191]
[1771367411988,2.37909714,85.38,85.351,0.50623191]
[1771367412687,11.71248199,85.379,85.351,0.50623191]
[1771367413699,11.71248199,85.379,85.31,14.10105236]
[1771367413700,0.49376058,85.359,85.31,14.10105236]
[1771367413870,2.37909714,85.35,85.32,2.37909714]
[1771367414066,17.1,85.361,85.33,2.37909714]
[1771367414270,0.49376058,85.384,85.35,2.37909714]
[1771367414566,17.08,85.385,85.32,2.37909714]
[1771367414567,11.71261917,85.378,85.34,2.37909714]
[1771367414773,0.46253268,85.359,85.32,2.37909714]
[1771367415381,2.37909714,85.35,85.32,2.37909714]
[1771367415596,0.46253268,85.349,85.311,0.48330855]
[1771367416466,12.17925929,85.349,85.313,0.48330855]
[1771367416670,12.17925929,85.349,85.321,0.48330855]
[1771367417282,0.46253268,85.356,85.321,0.48330855]
[1771367417588,0.46253268,85.356,85.331,0.48330855]
[1771367419283,0.46253268,85.356,85.331,12.2022941]
[1771367419483,0.46253268,85.356,85.332,0.48330855]
[1771367424597,0.46253268,85.356,85.333,12.20210432]
[1771367424891,0.46253268,85.356,85.334,0.48330855]
[1771367426690,0.46253268,85.372,85.341,0.48330855]
[1771367427198,0.46253268,85.369,85.341,0.48330855]
[1771367428100,0.46253268,85.359,85.335,12.20182967]
[1771367428401,0.46253268,85.359,85.336,0.48330855]
[1771367428597,0.46253268,85.359,85.337,11.71824648]
[1771367428898,0.46253268,85.359,85.338,0.48330855]
[1771367430198,0.46253268,85.359,85.339,12.2012804]
[1771367430780,0.46253268,85.359,85.34,0.48330855]
[1771367431778,0.46253268,85.359,85.336,0.48330855]
[1771367433603,0.46253268,85.359,85.326,29.29937889]
[1771367433604,0.46253268,85.359,85.338,0.48330855]
[1771367434711,0.46253268,85.357,85.338,0.48330855]
[1771367435378,2.37909714,85.37,85.338,0.48330855]
[1771367435584,2.84162982,85.37,85.34,0.48330855]
[1771367435787,0.46253268,85.369,85.34,0.48330855]
[1771367438702,11.71399119,85.368,85.342,0.48330855]
[1771367440789,11.71399119,85.368,85.343,11.71742263]
[1771367440991,11.71399119,85.368,85.344,0.48330855]
[1771367446423,11.71426563,85.366,85.344,0.48330855]
[1771367446591,2.37909714,85.36,85.344,0.48330855]
[1771367447407,0.50534069,85.361,85.344,0.48330855]
[1771367454008,0.50534069,85.361,85.345,11.71714804]
[1771367454206,0.50534069,85.361,85.346,0.47050838]
[1771367456423,0.50534069,85.359,85.331,11.71907044]
[1771367456623,0.50534069,85.349,85.331,11.71907044]
[1771367459226,0.50534069,85.349,85.326,12.19026554]
[1771367459411,0.50534069,85.349,85.327,0.47050838]
[1771367461531,0.50534069,85.349,85.328,11.71948246]
[1771367461715,0.50534069,85.349,85.329,0.47050838]
[1771367462817,0.50534069,85.349,85.33,11.71920778]
[1771367463018,17.08,85.36,85.331,0.47050838]
[1771367463019,0.50534069,85.354,85.331,0.47050838]
[1771367464634,0.50534069,85.354,85.327,29.2989517]
[1771367464635,0.50534069,85.354,85.333,0.47050838]
[1771367465238,11.71550077,85.357,85.333,0.47050838]
[1771367465420,0.50534069,85.349,85.333,0.47050838]
[1771367465932,0.50534069,85.353,85.333,0.47050838]
[1771367467613,2.37622814,85.34,85.312,0.47050838]
[1771367467817,2.37622814,85.34,85.311,11.72181781]
[1771367467818,0.50534069,85.329,85.302,0.47050838]
[1771367468017,19.47622814,85.35,85.311,0.47050838]
[1771367468235,0.50534069,85.349,85.311,0.47050838]
[1771367468534,2.37622814,85.34,85.311,0.47050838]
[1771367468932,2.88156883,85.34,85.313,0.47050838]
[1771367469639,0.50534069,85.339,85.313,0.47050838]
[1771367473235,2.37622814,85.34,85.315,0.47050838]
[1771367474842,0.47574305,85.339,85.315,0.47050838]
[1771367475230,2.37622814,85.34,85.317,0.48898108]
[1771367476962,2.37622814,85.34,85.319,0.48898108]
[1771367478249,0.47574305,85.344,85.321,0.48898108]
[1771367480739,0.47574305,85.344,85.323,0.48898108]
[1771367484161,11.71742263,85.343,85.323,0.48898108]
[1771367484341,0.47574305,85.342,85.323,0.48898108]
[1771367509889,0.48328644,85.339,85.323,0.48898108]
[1771367515398,0.48328644,85.339,85.318,0.4745685]
[1771367516678,0.48328644,85.329,85.308,0.4745685]
[1771367516896,0.48328644,85.319,85.302,0.4745685]
[1771367517897,0.48328644,85.319,85.297,11.72374174]
[1771367518094,0.48328644,85.319,85.297,12.19831024]
[1771367518285,0.48328644,85.319,85.297,11.72374174]
[1771367518479,0.48328644,85.319,85.298,0.4745685]
[1771367520786,0.48328644,85.319,85.299,11.72346686]
[1771367521079,0.50518099,85.309,85.291,11.72449347]
[1771367521500,0.50518099,85.299,85.281,11.72581323]
[1771367521680,0.50518099,85.289,85.27,0.2]
[1771367521993,0.50518099,85.289,85.271,11.72731643]
[1771367523596,0.50518099,85.289,85.272,0.49610447]
[1771367524105,2.37745655,85.31,85.274,0.49610447]
[1771367526107,2.37745655,85.31,85.281,0.49610447]
[1771367526108,0.50518099,85.309,85.281,0.49610447]
[1771367527206,0.50518099,85.309,85.282,11.7258038]
[1771367527511,0.50518099,85.309,85.283,0.49610447]
[1771367529292,0.48195448,85.313,85.285,0.4720139]
[1771367530189,0.48195448,85.313,85.286,11.72525385]
[1771367530390,0.48195448,85.313,85.287,0.4720139]
[1771367531114,0.48195448,85.309,85.287,0.4720139]
[1771367531601,11.72039041,85.322,85.291,0.4720139]
[1771367531802,0.48195448,85.331,85.301,0.4720139]
[1771367533121,0.48195448,85.329,85.301,0.4720139]
[1771367534000,0.48195448,85.327,85.301,0.4720139]
[1771367534524,0.494703,85.332,85.303,0.49809638]
[1771367535215,0.494703,85.351,85.321,0.49809638]
[1771367535408,0.494703,85.351,85.331,0.49809638]
[1771367536417,29.28808827,85.359,85.331,0.49809638]
[1771367536716,11.71404084,85.368,85.351,0.49809638]
[1771367536923,0.494703,85.367,85.341,0.49809638]
[1771367537924,2.37745655,85.38,85.32,21.33745655]
[1771367537925,0.494703,85.359,85.321,0.49809638]
[1771367538111,0.494703,85.359,85.331,0.49809638]
[1771367538417,0.494703,85.359,85.323,11.72003628]
[1771367538418,12.20850452,85.37,85.341,0.49809638]
[1771367538720,12.20850452,85.37,85.351,0.49809638]
[1771367538721,11.71380152,85.37,85.351,0.49809638]
[1771367539102,12.20850452,85.37,85.351,0.49809638]
[1771367540526,11.71380152,85.37,85.351,0.49809638]
[1771367541336,29.27950286,85.384,85.32,2.37745655]
[1771367541337,12.20718499,85.379,85.353,0.49809638]
[1771367541824,0.494703,85.389,85.361,0.49809638]
[1771367542122,0.1,85.39,85.371,0.49809638]
[1771367542325,0.1,85.4,85.381,0.49809638]
[1771367542627,0.1,85.4,85.352,41.00665479]
[1771367542628,0.494703,85.399,85.372,0.49809638]
[1771367543514,12.20444198,85.399,85.374,0.49809638]
[1771367543726,11.70973898,85.399,85.374,0.49809638]
[1771367546306,0.1,85.4,85.361,29.28712911]
[1771367546307,0.494703,85.389,85.364,11.71442709]
[1771367546614,0.494703,85.396,85.365,0.49809638]
[1771367548627,0.1,85.4,85.371,0.49809638]
[1771367549332,0.1,85.4,85.366,11.71426563]
[1771367549333,0.1,85.4,85.381,0.49809638]
[1771367549627,0.1,85.41,85.39,2.37745655]
[1771367549821,2.47745655,85.42,85.4,2.37745655]
[1771367549822,0.1,85.42,85.4,2.37745655]
[1771367550024,0.12420395,85.433,85.4,2.37745655]
[1771367550218,11.82930889,85.433,85.4,2.37745655]
[1771367551229,0.12420395,85.433,85.401,11.70946476]
[1771367552031,0.12420395,85.433,85.402,0.49809638]
[1771367552609,0.12619012,85.429,85.397,0.49809638]
[1771367554030,0.12619012,85.429,85.399,0.49809638]
[1771367556729,0.13004887,85.419,85.388,0.49809638]